bitfinex/quotes_SOLUSD_20250410
["timestamp","ask_amount","ask_price","bid_price","bid_amount"]
[1744252833585,0.03,117.36,117.34,82.5372429]
[1744252834087,0.03,117.36,117.34,72.3899]
[1744252834674,0.03,117.36,117.34,82.5372429]
[1744252835483,0.03,117.36,117.34,88.24590268]
[1744252839791,0.03,117.36,117.35,15.85600268]
[1744252841376,0.03,117.36,117.34,88.24590268]
[1744252844394,0.03,117.36,117.35,18.64964886]
[1744252844694,0.03,117.36,117.35,34.50565154]
[1744252844992,0.03,117.36,117.34,72.3899]
[1744252845203,0.03,117.36,117.34,88.24590268]
[1744252845378,0.03,117.36,117.34,72.3899]
[1744252845581,0.03,117.36,117.34,88.24590268]
[1744252846106,0.03,117.36,117.34,96.76810268]
[1744252846268,0.03,117.36,117.35,15.85600268]
[1744252849002,0.03,117.36,117.34,88.24590268]
[1744252849307,0.03,117.36,117.35,15.85600268]
[1744252850000,0.03,117.36,117.35,34.50565154]
[1744252853207,0.03,117.36,117.35,43.02715154]
[1744252853582,0.03,117.36,117.35,34.50565154]
[1744252857109,0.03,117.36,117.35,43.02715154]
[1744252857297,0.03,117.36,117.35,37.31611288]
[1744252860515,0.03,117.36,117.34,72.3899]
[1744252860813,0.03,117.36,117.34,82.53486402]
[1744252866314,0.03,117.36,117.34,72.3899]
[1744252866491,1.5822,117.36,117.34,82.53486402]
[1744252867213,1.5822,117.36,117.34,17.72496402]
[1744252870916,1.5822,117.36,117.34,10.14496402]
[1744252873925,10.1031,117.36,117.34,10.14496402]
[1744252874720,1.5822,117.36,117.34,10.14496402]
[1744252875113,10.103,117.36,117.33,7.58]
[1744252875318,10.14496402,117.35,117.3,20.88440131]
[1744252875511,1.5193,117.32,117.3,13.30440131]
[1744252876525,10.0435,117.32,117.3,13.30440131]
[1744252878099,10.0435,117.32,117.3,0.063]
[1744252880610,20.18846402,117.32,117.3,0.063]
[1744252881524,10.0435,117.32,117.3,0.063]
[1744252882727,6.0861,117.33,117.3,10.20796402]
[1744252883931,14.6091,117.33,117.3,10.20796402]
[1744252886031,6.0861,117.33,117.3,18.73286402]
[1744252886233,8.5224,117.34,117.3,18.73286402]
[1744252886831,8.5224,117.34,117.3,10.20796402]
[1744252888133,8.5224,117.34,117.3,18.73306402]
[1744252889331,10.0412,117.35,117.31,10.14496402]
[1744252889633,20.18616402,117.35,117.3,18.73306402]
[1744252892333,1.5193,117.35,117.31,28.79461288]
[1744252892637,6.5471,117.36,117.32,10.14496402]
[1744252893537,8.5508,117.36,117.32,18.66816402]
[1744252894439,8.5508,117.36,117.32,10.14496402]
[1744252894627,18.69576402,117.36,117.31,109.70851288]
[1744252895926,18.69576402,117.36,117.31,101.18451288]
[1744252896154,10.14496402,117.35,117.31,91.03954886]
[1744252896328,18.69576402,117.36,117.31,101.18451288]
[1744252896524,18.69576402,117.36,117.31,109.70871288]
[1744252897035,8.5508,117.36,117.32,10.14496402]
[1744252898434,8.5508,117.36,117.32,18.66856402]
[1744252902640,8.5508,117.36,117.32,10.14496402]
[1744252902839,8.5508,117.36,117.32,18.66846402]
[1744252906251,8.5508,117.36,117.32,10.14496402]
[1744252906947,8.5508,117.36,117.32,18.66846402]
[1744252909450,8.5508,117.36,117.32,10.14496402]
[1744252911166,8.5508,117.36,117.32,18.66856402]
[1744252911639,0.03,117.36,117.32,18.66856402]
[1744252911950,0.03,117.36,117.33,18.64964886]
[1744252912252,0.03,117.36,117.34,10.14496402]
[1744252913653,0.03,117.36,117.33,18.66716402]
[1744252913840,0.03,117.36,117.33,28.79461288]
[1744252915661,0.03,117.36,117.32,64.8099]
[1744252915944,10.17496402,117.36,117.32,64.8099]
[1744252916945,0.03,117.36,117.32,74.95486402]
[1744252917140,0.03,117.36,117.32,10.14496402]
[1744252919047,8.5507,117.36,117.31,16.104]
[1744252919254,8.5507,117.36,117.32,10.14496402]
[1744252922659,8.5507,117.36,117.31,26.24896402]
[1744252922862,8.5507,117.36,117.31,7.58]
[1744252922863,16.89738716,117.35,117.31,7.58]
[1744252923163,6.75242314,117.35,117.31,7.58]
[1744252923343,6.75242314,117.35,117.31,26.24926402]
[1744252924561,15.27422314,117.35,117.31,26.24926402]
[1744252925260,15.27422314,117.35,117.31,18.66926402]
[1744252925467,15.27422314,117.35,117.31,10.14496402]
[1744252925766,15.27422314,117.35,117.3,10.20796402]
[1744252925767,36.57792314,117.35,117.3,10.20796402]
[1744252925960,11.74866402,117.34,117.3,0.063]
[1744252926468,1.6037,117.34,117.3,10.20796402]
[1744252926772,8.5229,117.33,117.3,10.20796402]
[1744252931868,1.6037,117.34,117.31,10.14496402]
[1744252932063,14.9899,117.35,117.32,10.14496402]
[1744252932673,14.9899,117.35,117.31,10.14496402]
[1744252932879,14.9899,117.35,117.31,17.72496402]
[1744252933703,14.9899,117.35,117.31,26.24916402]
[1744252934175,14.9899,117.35,117.31,17.72496402]
[1744252934477,14.9899,117.35,117.31,26.24886402]
[1744252934669,6.4681,117.35,117.32,10.14496402]
[1744252934864,14.9896,117.35,117.32,10.14496402]
[1744252935459,6.4681,117.35,117.32,10.14496402]
[1744252935883,6.4681,117.35,117.32,18.66856402]
[1744252936465,14.9896,117.35,117.31,17.72496402]
[1744252937581,46.43826402,117.35,117.3,10.20796402]
[1744252947492,10.42928716,117.34,117.3,0.063]
[1744252947695,12.07238716,117.34,117.3,0.063]
[1744252948197,8.5229,117.33,117.3,0.063]
[1744252948493,18.66786402,117.33,117.3,0.063]
[1744252950009,0.28432314,117.32,117.3,0.063]
[1744252950188,8.5244,117.31,117.3,0.063]
[1744252955792,8.5241,117.32,117.3,0.063]
[1744252957394,8.80762314,117.33,117.3,0.063]
[1744252957594,8.5233,117.33,117.3,10.20796402]
[1744252958600,8.5233,117.33,117.3,0.063]
[1744252959195,10.1655,117.34,117.3,0.063]
[1744252959401,10.1655,117.34,117.3,10.20796402]
[1744252959895,10.1655,117.34,117.3,0.063]
[1744252960401,20.31046402,117.34,117.3,0.063]
[1744252963801,10.1655,117.34,117.3,0.063]
[1744252964104,20.31046402,117.34,117.3,0.063]
[1744252965003,10.1655,117.34,117.3,10.20796402]
[1744252966705,10.1655,117.34,117.31,10.14496402]
[1744252967702,8.5224,117.34,117.31,10.14496402]
[1744252967902,0.03,117.36,117.32,10.14496402]
[1744252968201,8.5508,117.36,117.31,8.5244]
[1744252968415,18.69576402,117.36,117.31,18.66936402]
[1744252969094,8.5508,117.36,117.32,10.14496402]
[1744252971909,18.69576402,117.36,117.32,18.66856402]
[1744252973594,18.69576402,117.36,117.32,10.14496402]
[1744252973790,18.69576402,117.36,117.31,18.66906402]
[1744252974214,10.14496402,117.35,117.3,75.01786402]
[1744252975221,10.14496402,117.32,117.3,0.063]
[1744252975388,8.5244,117.31,117.3,0.063]
[1744252975986,8.80872314,117.31,117.3,0.063]
[1744252978789,18.95368716,117.31,117.3,0.063]
[1744252980410,8.80872314,117.31,117.3,0.063]
[1744252980616,18.95368716,117.31,117.3,0.063]
[1744252988135,8.80822314,117.32,117.3,0.063]
[1744252988611,18.95318716,117.32,117.3,0.063]
[1744252990243,8.80822314,117.32,117.3,0.063]
[1744252990528,8.5239,117.32,117.3,0.063]
[1744252993929,18.66886402,117.32,117.3,0.063]
[1744252996822,10.42928716,117.31,117.3,0.063]
[1744252998335,0.28432314,117.31,117.3,0.063]
[1744252998630,8.80872314,117.31,117.3,0.063]
[1744253000633,8.5244,117.31,117.3,0.063]
[1744253001835,18.95288716,117.32,117.3,0.063]
[1744253005136,8.5236,117.32,117.3,0.063]
[1744253005339,8.5222,117.34,117.3,0.063]
[1744253005636,8.5222,117.34,117.3,10.20796402]
[1744253007738,18.95118716,117.35,117.3,18.73306402]
[1744253007939,18.80902559,117.35,117.3,18.73306402]
[1744253008926,7.93736157,117.36,117.32,10.14496402]
[1744253008927,20.43052559,117.36,117.32,10.14496402]
[1744253010242,20.43052559,117.36,117.31,10.14496402]
[1744253010841,20.43052559,117.36,117.31,18.66916402]
[1744253012051,8.69316157,117.36,117.31,19.96836402]
[1744253012231,18.83812559,117.36,117.31,19.96836402]
[1744253015038,8.69316157,117.36,117.31,19.96836402]
[1744253015339,18.83812559,117.36,117.31,19.96836402]
[1744253017930,18.69596402,117.36,117.32,18.66806402]
[1744253018248,8.551,117.36,117.32,18.66806402]
[1744253019350,8.551,117.36,117.31,11.44416402]
[1744253019351,18.69596402,117.36,117.31,11.44416402]
[1744253020137,18.69596402,117.36,117.31,19.96856402]
[1744253020650,10.14496402,117.35,117.31,19.96856402]
[1744253021046,10.14496402,117.35,117.31,1.2992]
[1744253021251,10.14496402,117.35,117.3,18.73286402]
[1744253021437,8.5222,117.34,117.3,18.73286402]
[1744253022849,8.5222,117.34,117.31,10.14496402]
[1744253023259,8.5222,117.34,117.3,8.5879]
[1744253023552,18.69566402,117.36,117.32,10.14496402]
[1744253024149,0.03,117.36,117.34,10.14496402]
[1744253024337,0.03,117.36,117.33,17.70496402]
[1744253027756,0.03,117.36,117.33,7.56]
[1744253027939,10.17496402,117.36,117.33,7.56]
[1744253028554,0.03,117.36,117.33,7.56]
[1744253029859,0.03,117.36,117.33,16.0828]
[1744253030062,0.03,117.36,117.33,26.22776402]
[1744253033272,0.03,117.36,117.33,16.0828]
[1744253033446,0.03,117.36,117.33,7.56]
[1744253038053,0.03,117.36,117.3,80.9578]
[1744253038054,11.82186402,117.36,117.3,80.9578]
[1744253038253,11.82186402,117.36,117.31,10.14496402]
[1744253038668,11.82186402,117.36,117.3,80.9578]
[1744253038979,8.5215,117.35,117.31,10.14496402]
[1744253040391,8.5215,117.35,117.3,91.10276402]
[1744253041383,18.66646402,117.35,117.3,91.10276402]
[1744253043651,10.14496402,117.33,117.3,0.063]
[1744253044376,16.80718716,117.34,117.3,0.063]
[1744253045671,10.14496402,117.33,117.3,0.063]
[1744253046982,8.5236,117.32,117.3,0.063]
[1744253050083,18.66786402,117.33,117.3,0.063]
[1744253055981,10.42928716,117.31,117.3,0.063]
[1744253056163,16.68718716,117.31,117.3,0.063]
[1744253056366,57.26704324,117.31,117.3,0.063]
[1744253056569,0.28432314,117.3,117.29,0.063]
[1744253056770,52.57294324,117.3,117.29,0.063]
[1744253057897,61.09804324,117.3,117.29,0.063]
[1744253059675,20.51818716,117.3,117.29,0.063]
[1744253060690,79.7476921,117.3,117.29,0.0001]
[1744253064597,36.42928716,117.28,117.27,0.063]
[1744253065701,44.95588716,117.28,117.27,0.063]
[1744253070298,44.67156402,117.28,117.27,0.063]
[1744253070503,8.5262,117.29,117.27,0.063]
[1744253070890,0.28432314,117.29,117.27,0.063]
[1744253071096,18.67046402,117.3,117.27,0.063]
[1744253071281,8.5255,117.3,117.27,0.063]
[1744253073890,18.67046402,117.3,117.27,0.063]
[1744253074608,18.67046402,117.3,117.25,10.14496402]
[1744253076115,18.67046402,117.3,117.25,18.67366402]
[1744253076334,24.85696402,117.3,117.25,10.14496402]
[1744253077203,24.85696402,117.3,117.25,18.67356402]
[1744253077917,10.14496402,117.29,117.25,18.67356402]
[1744253078419,18.67136402,117.29,117.25,18.67356402]
[1744253078915,18.67136402,117.29,117.25,10.14496402]
[1744253080995,20.30936402,117.29,117.24,10.14496402]
[1744253082217,20.30936402,117.29,117.25,10.14496402]
[1744253085725,20.30936402,117.29,117.24,18.67426402]
[1744253089325,20.30936402,117.29,117.24,10.14496402]
[1744253091226,10.1644,117.29,117.24,18.67436402]
[1744253091422,20.30936402,117.29,117.24,18.67436402]
[1744253091825,20.30936402,117.29,117.25,10.14496402]
[1744253093226,20.30936402,117.29,117.24,18.67436402]
[1744253095832,10.14496402,117.27,117.23,49.28502002]
[1744253096019,6.5691,117.26,117.22,10.20796402]
[1744253096213,6.5691,117.26,117.23,10.14496402]
[1744253096824,6.5691,117.26,117.22,18.73846402]
[1744253098534,6.5691,117.26,117.23,10.14496402]
[1744253100631,6.5691,117.26,117.23,18.67476402]
[1744253103338,6.5691,117.26,117.25,10.14496402]
[1744253103639,8.1335,117.29,117.25,10.14496402]
[1744253103834,8.1335,117.29,117.27,10.14496402]
[1744253104136,8.0706,117.32,117.28,10.14496402]
[1744253104829,16.5942,117.32,117.28,10.14496402]
[1744253105223,26.73916402,117.32,117.28,10.14496402]
[1744253105543,48.04836402,117.32,117.27,10.14496402]
[1744253105924,10.42928716,117.31,117.27,10.14496402]
[1744253106131,10.42928716,117.31,117.25,65.37342002]
[1744253106346,10.42928716,117.31,117.26,10.14496402]
[1744253107444,8.5251,117.3,117.26,10.14496402]
[1744253107743,8.5251,117.3,117.27,10.14496402]
[1744253110224,8.5251,117.3,117.26,10.14496402]
[1744253111942,8.5251,117.3,117.26,18.67296402]
[1744253112445,8.5251,117.3,117.26,10.14496402]
[1744253113229,8.5251,117.3,117.26,18.67286402]
[1744253113430,8.5251,117.3,117.26,10.14496402]
[1744253115045,8.5251,117.3,117.26,18.67296402]
[1744253116441,8.5244,117.31,117.27,18.67216402]
[1744253117349,8.5244,117.31,117.27,10.14496402]
[1744253120553,8.5244,117.31,117.27,18.67216402]
[1744253121753,16.5946,117.32,117.28,10.14496402]
[1744253121959,8.5234,117.33,117.3,10.14496402]
[1744253122143,8.5234,117.33,117.29,10.14496402]
[1744253122827,8.5234,117.33,117.3,10.14496402]
[1744253123328,8.5234,117.33,117.29,18.67076402]
[1744253123545,18.66836402,117.33,117.28,10.14496402]
[1744253124549,8.5244,117.31,117.28,10.14496402]
[1744253124731,10.42928716,117.3,117.25,65.37342002]
[1744253124933,10.42928716,117.3,117.25,10.14496402]
[1744253126431,0.28432314,117.28,117.24,16.0895]
[1744253126735,10.42928716,117.28,117.24,26.23446402]
[1744253126936,0.28432314,117.28,117.24,26.23446402]
[1744253127759,8.5255,117.3,117.26,10.14496402]
[1744253128061,8.5255,117.3,117.27,10.14496402]
[1744253128237,8.5255,117.3,117.24,65.37452002]
[1744253128439,8.5255,117.3,117.26,10.14496402]
[1744253129863,18.67046402,117.3,117.25,10.14496402]
[1744253132075,18.67046402,117.3,117.25,18.67366402]
[1744253133983,18.67046402,117.3,117.25,10.14496402]
[1744253134154,10.42928716,117.29,117.24,56.84502002]
[1744253134357,10.42928716,117.29,117.24,75.51928404]
[1744253134751,0.28432314,117.29,117.25,10.14496402]
[1744253135284,10.42928716,117.29,117.24,75.51928404]
[1744253135686,8.5266,117.28,117.24,75.51928404]
[1744253137280,8.5266,117.28,117.25,10.14496402]
[1744253137847,8.5266,117.28,117.24,75.51928404]
[1744253138951,8.0384,117.27,117.24,56.84502002]
[1744253139164,8.528,117.26,117.24,7.56]
[1744253139352,16.5659,117.27,117.24,7.56]
[1744253139559,16.5659,117.27,117.24,17.70496402]
[1744253141280,16.5659,117.27,117.24,10.14496402]
[1744253141577,8.0384,117.27,117.24,18.67436402]
[1744253141771,16.5658,117.27,117.24,18.67436402]
[1744253142563,16.5658,117.27,117.24,10.14496402]
[1744253142759,16.5658,117.27,117.23,8.5298]
[1744253142963,16.5658,117.27,117.24,10.14496402]
[1744253143375,16.5658,117.27,117.23,10.14496402]
[1744253144476,16.5658,117.27,117.22,18.73886402]
[1744253145066,16.5658,117.27,117.23,10.14496402]
[1744253149580,16.5658,117.27,117.23,18.67506402]
[1744253150080,16.5658,117.27,117.24,10.14496402]
[1744253151882,16.5658,117.27,117.23,18.67506402]
[1744253156090,16.5658,117.27,117.22,0.063]
[1744253156272,26.0,117.23,117.22,0.063]
[1744253156473,36.42928716,117.23,117.22,0.063]
[1744253157685,0.28432314,117.22,117.21,0.063]
[1744253157875,10.42928716,117.22,117.21,0.063]
[1744253158072,37.60983602,117.22,117.2,0.063]
[1744253158273,10.42928716,117.21,117.2,0.063]
[1744253158475,0.28432314,117.21,117.2,0.063]
[1744253158686,10.42928716,117.21,117.2,0.063]
[1744253158880,7.96202314,117.2,117.19,0.063]
[1744253159085,18.10698716,117.2,117.19,0.063]
[1744253159668,18.10698716,117.2,117.18,0.063]
[1744253159886,10.42928716,117.19,117.18,0.063]
[1744253160190,18.96238716,117.19,117.18,0.063]
[1744253161273,0.28432314,117.18,117.17,0.063]
[1744253161487,0.28432314,117.16,117.15,0.063]
[1744253161786,10.42928716,117.16,117.15,0.063]
[1744253162505,10.42928716,117.16,117.14,0.063]
[1744253162506,37.61423602,117.16,117.14,0.063]
[1744253162662,10.42928716,117.15,117.14,0.063]
[1744253162864,26.0,117.11,117.04,8.544]
[1744253163083,33.6777,117.09,117.03,13.25354063]
[1744253163286,10.42928716,117.08,117.03,13.25354063]
[1744253163594,10.14496402,117.07,117.03,13.25354063]
[1744253163770,0.28432314,117.08,117.03,12.75354063]
[1744253163973,10.14496402,117.07,117.03,12.75354063]
[1744253164184,0.28432314,117.08,117.03,12.75354063]
[1744253164381,10.14496402,117.07,117.03,12.75354063]
[1744253164590,10.14496402,117.06,117.03,12.75354063]
[1744253164770,0.28432314,117.06,117.03,12.75354063]
[1744253164977,10.42928716,117.07,117.03,12.75354063]
[1744253165485,10.14496402,117.06,117.03,12.75354063]
[1744253166497,33.6777,117.09,117.03,22.89850465]
[1744253166800,10.42928716,117.08,117.03,10.14496402]
[1744253167183,0.28432314,117.08,117.03,18.68966402]
[1744253167383,10.42928716,117.08,117.03,18.68966402]
[1744253167598,0.28432314,117.08,117.03,18.68966402]
[1744253167797,43.82266402,117.09,117.04,10.14496402]
[1744253167996,7.6777,117.09,117.04,10.14496402]
[1744253168294,10.14496402,117.08,117.01,8.5462]
[1744253168475,10.14496402,117.08,117.02,27.19514886]
[1744253168676,10.14496402,117.08,117.03,10.14496402]
[1744253169202,0.28432314,117.08,117.03,10.14496402]
[1744253169379,10.42928716,117.08,117.03,10.14496402]
[1744253170574,10.14496402,117.07,117.02,27.19514886]
[1744253170894,10.14496402,117.06,117.01,10.14496402]
[1744253171075,10.14496402,117.06,117.01,28.79461288]
[1744253172471,10.14496402,117.06,117.01,37.34071288]
[1744253172685,8.5421,117.07,117.02,10.14496402]
[1744253172889,10.14496402,117.06,117.01,28.79461288]
[1744253173094,10.14496402,117.06,117.01,10.14496402]
[1744253173687,10.14496402,117.06,117.01,18.69116402]
[1744253174800,0.28432314,117.08,117.02,10.14496402]
[1744253175001,10.28712559,117.08,117.03,10.14496402]
[1744253175376,7.6777,117.09,117.04,10.14496402]
[1744253175582,7.6777,117.09,117.05,10.14496402]
[1744253175977,7.6777,117.09,117.05,18.68796402]
[1744253176179,7.6777,117.09,117.05,10.14496402]
[1744253177375,7.6777,117.09,117.05,18.68816402]
[1744253177581,7.6777,117.09,117.06,10.14496402]
[1744253177794,6.0567,117.09,117.06,10.14496402]
[1744253177997,10.14496402,117.11,117.06,18.68736402]
[1744253178208,0.28432314,117.11,117.07,10.14496402]
[1744253178707,0.28432314,117.11,117.06,8.5424]
[1744253178882,10.42928716,117.11,117.06,18.68736402]
[1744253179082,10.42928716,117.11,117.06,10.14496402]
[1744253180109,10.42928716,117.11,117.06,18.68746402]
[1744253180506,10.14496402,117.11,117.06,18.68746402]
[1744253181307,18.68406402,117.11,117.05,17.3829]
[1744253181503,10.14496402,117.1,117.05,27.52786402]
[1744253182012,18.68406402,117.11,117.06,10.14496402]
[1744253182181,18.68406402,117.11,117.06,18.68756402]
[1744253182385,16.4948,117.12,117.06,18.68756402]
[1744253182594,10.14496402,117.11,117.07,10.14496402]
[1744253182907,10.14496402,117.11,117.06,18.68756402]
[1744253184215,10.14496402,117.11,117.06,8.5426]
[1744253184387,10.14496402,117.11,117.06,18.68756402]
[1744253185608,7.9562,117.12,117.09,10.14496402]
[1744253185911,0.03,117.14,117.11,10.14496402]
[1744253186103,0.03,117.14,117.1,8.84]
[1744253186104,0.03,117.14,117.12,10.14496402]
[1744253186292,0.03,117.14,117.13,18.68246402]
[1744253187306,0.03,117.14,117.13,24.45098967]
[1744253188097,0.03,117.14,117.11,49.28502002]
[1744253188289,15.94348967,117.14,117.11,49.28502002]
[1744253190399,0.03,117.14,117.11,49.28502002]
[1744253191434,0.03,117.14,117.11,73.73700969]
[1744253191793,0.03,117.14,117.11,82.57700969]
[1744253194221,15.94348967,117.14,117.11,58.12502002]
[1744253194521,7.9176,117.13,117.11,58.12502002]
[1744253194724,7.9176,117.13,117.11,66.66392002]
[1744253197218,7.9176,117.13,117.11,58.12502002]
[1744253198519,7.9176,117.13,117.11,8.84]
[1744253198901,7.9176,117.13,117.11,17.3789]
[1744253199923,7.9176,117.13,117.11,8.84]
[1744253200306,0.03,117.14,117.11,8.84]
[1744253200707,0.03,117.14,117.11,17.3789]
[1744253202225,0.03,117.14,117.11,8.84]
[1744253202426,15.94348967,117.14,117.11,8.84]
[1744253202803,0.03,117.14,117.11,17.3786]
[1744253204723,0.03,117.14,117.11,33.29208967]
[1744253206508,0.03,117.14,117.12,15.91348967]
[1744253207222,0.03,117.14,117.13,8.5375]
[1744253207409,0.03,117.14,117.12,8.5378]
[1744253207617,0.03,117.14,117.13,10.18592598]
[1744253209236,0.03,117.14,117.13,18.72342598]
[1744253214334,0.03,117.14,117.12,27.18744886]
[1744253214635,0.03,117.14,117.12,37.37337484]
[1744253215632,0.03,117.14,117.12,18.72372598]
[1744253215936,0.03,117.14,117.11,66.66392002]
[1744253219640,0.03,117.14,117.11,58.12502002]
[1744253219940,8.1858,117.13,117.11,8.84]
[1744253220740,18.37172598,117.13,117.11,8.84]
[1744253221238,26.90942598,117.13,117.11,8.84]
[1744253221549,26.90942598,117.13,117.09,8.5401]
[1744253222019,18.37172598,117.13,117.09,8.5401]
[1744253222339,26.90932598,117.13,117.09,8.5401]
[1744253223746,26.90932598,117.13,117.08,68.011746]
[1744253223920,10.18592598,117.12,117.08,57.82582002]
[1744253224241,16.7234,117.13,117.07,8.64]
[1744253224242,10.18592598,117.11,117.07,8.64]
[1744253225139,10.18592598,117.1,117.07,8.64]
[1744253226542,18.72532598,117.11,117.07,8.64]
[1744253228041,8.5394,117.11,117.07,8.64]
[1744253228240,8.5394,117.11,117.07,18.82592598]
[1744253228418,18.72532598,117.11,117.07,27.36772598]
[1744253228743,8.5394,117.11,117.07,8.64]
[1744253228956,8.5394,117.11,117.07,18.82592598]
[1744253229444,8.5394,117.11,117.07,8.64]
[1744253229642,18.72532598,117.11,117.07,8.64]
[1744253231148,18.72532598,117.11,117.07,27.36772598]
[1744253231321,10.18592598,117.12,117.07,27.36772598]
[1744253231527,18.65604912,117.13,117.08,10.18592598]
[1744253231727,27.19394912,117.13,117.08,10.18592598]
[1744253232144,10.18592598,117.12,117.07,27.36772598]
[1744253233145,17.00802314,117.13,117.08,18.72652598]
[1744253233332,27.19394912,117.13,117.08,18.72652598]
[1744253233641,18.37172598,117.13,117.08,68.011546]
[1744253233830,8.1858,117.13,117.09,10.18592598]
[1744253234238,8.1858,117.13,117.1,10.18592598]
[1744253234437,8.1858,117.13,117.11,10.18592598]
[1744253234642,8.1858,117.13,117.1,10.18592598]
[1744253235028,8.1858,117.13,117.09,78.12059486]
[1744253235239,8.1858,117.13,117.09,86.66069486]
[1744253235425,26.90922598,117.13,117.09,59.470946]
[1744253236037,26.90922598,117.13,117.09,49.28502002]
[1744253236727,26.90922598,117.13,117.07,8.64]
[1744253236951,10.18592598,117.12,117.07,18.82592598]
[1744253237336,18.72552598,117.11,117.07,18.82592598]
[1744253237922,18.72552598,117.11,117.07,8.64]
[1744253243960,10.18592598,117.1,117.07,8.64]
[1744253244756,10.18592598,117.09,117.07,8.64]
[1744253246157,16.0949,117.1,117.07,8.64]
[1744253246363,10.18592598,117.09,117.07,8.64]
[1744253246963,8.5404,117.09,117.07,8.64]
[1744253248636,7.5547,117.1,117.07,8.64]
[1744253248835,7.5547,117.1,117.07,17.1817]
[1744253254867,7.5547,117.1,117.07,8.64]
[1744253255271,7.5547,117.1,117.07,17.1818]
[1744253255478,6.0385,117.1,117.07,27.36772598]
[1744253255657,16.94902314,117.13,117.08,10.18592598]
[1744253255847,27.13494912,117.13,117.08,10.18592598]
[1744253256172,27.13494912,117.13,117.07,27.36772598]
[1744253256372,10.18592598,117.12,117.07,27.36772598]
[1744253256668,18.72452598,117.12,117.07,27.36772598]
[1744253257753,10.47024912,117.11,117.07,8.64]
[1744253257951,10.18592598,117.1,117.07,8.64]
[1744253259074,8.5404,117.09,117.07,8.64]
[1744253259573,18.72602598,117.1,117.07,8.64]
[1744253260461,10.18592598,117.09,117.07,8.64]
[1744253261175,18.72682598,117.09,117.07,8.64]
[1744253261361,24.85072598,117.09,117.04,18.72962598]
[1744253261563,10.18592598,117.08,117.03,65.94962002]
[1744253261775,10.18592598,117.08,117.03,76.135546]
[1744253261961,10.18592598,117.08,117.03,65.94962002]
[1744253262162,10.18592598,117.08,117.03,76.135546]
[1744253262368,10.18592598,117.08,117.03,67.590946]
[1744253262672,10.18592598,117.08,117.03,57.40502002]
[1744253262873,10.18592598,117.08,117.03,67.590946]
[1744253263184,18.72922598,117.05,117.0,76.137546]
[1744253263477,24.85312598,117.05,117.0,76.137546]
[1744253263649,24.85312598,117.05,117.0,65.95162002]
[1744253263849,14.6672,117.05,117.0,76.137546]
[1744253264155,26.50722598,117.05,117.0,76.137546]
[1744253264969,10.18592598,117.04,117.0,57.40502002]
[1744253266067,10.18592598,117.03,117.0,57.40502002]
[1744253266673,10.18592598,117.03,117.0,49.28502002]
[1744253267480,10.18592598,117.02,116.98,0.063]
[1744253267792,10.18592598,117.02,116.98,8.6114]
[1744253267978,18.73152598,117.02,116.98,8.6114]
[1744253269173,7.778,117.05,116.98,86.73199486]
[1744253269356,17.96392598,117.05,117.0,10.18592598]
[1744253270282,7.778,117.05,117.01,10.18592598]
[1744253270879,17.96392598,117.05,117.0,59.470946]
[1744253271366,26.50742598,117.05,117.01,8.5462]
[1744253271560,26.50742598,117.05,117.0,68.017546]
[1744253271772,16.3215,117.05,117.0,68.017546]
[1744253271962,26.50742598,117.05,117.0,68.017546]
[1744253272165,16.3215,117.05,117.0,68.017546]
[1744253272362,0.28432314,117.03,117.0,49.28502002]
[1744253272761,10.47024912,117.03,116.99,8.5473]
[1744253273273,0.28432314,117.03,116.99,18.73322598]
[1744253273690,8.82942314,117.03,116.99,18.73322598]
[1744253274484,16.3217,117.05,116.99,18.73322598]
[1744253274689,17.96392598,117.05,117.0,10.18592598]
[1744253274894,7.778,117.05,117.02,10.18592598]
[1744253275196,7.778,117.05,117.01,18.30592598]
[1744253275484,7.778,117.05,117.02,10.18592598]
[1744253275872,7.778,117.05,117.03,8.5448]
[1744253276289,7.778,117.05,117.02,18.73132598]
[1744253276491,7.778,117.05,117.02,8.5454]
[1744253276786,7.778,117.05,117.02,18.73132598]
[1744253277284,7.778,117.05,117.02,24.48679813]